[Event "*** SCC Grand Prix: Titled Tuesday Blitz"]
[Site "Chess.com"]
[Date "2020.06.09"]
[Round "6"]
[White "TargetA"]
[Black "Jadeit90"]
[Result "1/2-1/2"]
[WhiteElo "2569"]
[BlackElo "2320"]
[TimeControl "180+1"]
[EndTime "10:08:13 PDT"]
[Termination "Game drawn by repetition"]

1. d4 {[%clk 0:02:59.7]} 1... Nf6 {[%clk 0:02:59.6]} 2. c4 {[%clk 0:02:59.4]}
2... c5 {[%clk 0:02:59.9]} 3. d5 {[%clk 0:02:58.5]} 3... d6 {[%clk 0:03:00.5]}
4. Nc3 {[%clk 0:02:57.6]} 4... g6 {[%clk 0:03:01.1]} 5. e4 {[%clk 0:02:57.4]}
5... Bg7 {[%clk 0:02:59.3]} 6. h3 {[%clk 0:02:57.1]} 6... O-O {[%clk 0:02:53.7]}
7. Nf3 {[%clk 0:02:56.9]} 7... e6 {[%clk 0:02:54.2]} 8. Bd3 {[%clk 0:02:56.1]}
8... exd5 {[%clk 0:02:54.6]} 9. exd5 {[%clk 0:02:57]} 9... Na6 {[%clk
0:02:54.9]} 10. O-O {[%clk 0:02:55.5]} 10... Nc7 {[%clk 0:02:55.2]} 11. a4
{[%clk 0:02:48]} 11... Rb8 {[%clk 0:02:55.5]} 12. Bf4 {[%clk 0:02:45.8]} 12...
a6 {[%clk 0:02:55.6]} 13. a5 {[%clk 0:02:43.1]} 13... b5 {[%clk 0:02:55.6]} 14.
axb6 {[%clk 0:02:39]} 14... Rxb6 {[%clk 0:02:55.6]} 15. Qc2 {[%clk 0:02:32.4]}
15... Rb4 {[%clk 0:02:55.3]} 16. Nd2 {[%clk 0:02:21.6]} 16... Ncxd5 {[%clk
0:02:53]} 17. Bh2 {[%clk 0:01:54.8]} 17... Nxc3 {[%clk 0:02:50.8]} 18. bxc3
{[%clk 0:01:55.7]} 18... Rb6 {[%clk 0:02:48.9]} 19. Rfd1 {[%clk 0:01:55.6]}
19... Be6 {[%clk 0:02:43.7]} 20. Ra5 {[%clk 0:01:50.4]} 20... Qb8 {[%clk
0:02:28]} 21. Rxc5 {[%clk 0:01:41.8]} 21... Qb7 {[%clk 0:02:18.3]} 22. Ra5
{[%clk 0:01:38.6]} 22... Nd7 {[%clk 0:02:12.9]} 23. Ne4 {[%clk 0:01:34.8]} 23...
Rb2 {[%clk 0:02:07.5]} 24. Qc1 {[%clk 0:01:23.1]} 24... Qb6 {[%clk 0:02:03.2]}
25. Ra1 {[%clk 0:01:16.1]} 25... d5 {[%clk 0:01:51.4]} 26. cxd5 {[%clk
0:01:07.4]} 26... Bxd5 {[%clk 0:01:52.3]} 27. Rb1 {[%clk 0:01:04.4]} 27... Rxb1
{[%clk 0:01:37.9]} 28. Bxb1 {[%clk 0:01:05.3]} 28... Be6 {[%clk 0:01:35.1]} 29.
c4 {[%clk 0:01:00.7]} 29... Rc8 {[%clk 0:01:26.8]} 30. Nd6 {[%clk 0:00:58.9]}
30... Rd8 {[%clk 0:01:15.5]} 31. Bf4 {[%clk 0:00:52.9]} 31... Nc5 {[%clk
0:01:15]} 32. Ne4 {[%clk 0:00:48]} 32... Rxd1+ {[%clk 0:01:12.7]} 33. Qxd1
{[%clk 0:00:48.4]} 33... Nxe4 {[%clk 0:01:11]} 34. Bxe4 {[%clk 0:00:48.1]} 34...
Bxc4 {[%clk 0:01:09.7]} 35. Be3 {[%clk 0:00:45.9]} 35... Qc7 {[%clk 0:01:06.8]}
36. Qc2 {[%clk 0:00:41.2]} 36... Be5 {[%clk 0:01:05.3]} 37. Qa4 {[%clk
0:00:34.3]} 37... Bb5 {[%clk 0:01:04.1]} 38. Qb3 {[%clk 0:00:32.2]} 38... Qe7
{[%clk 0:01:01.2]} 39. Qd5 {[%clk 0:00:31.2]} 39... Bd6 {[%clk 0:00:54.7]} 40.
g3 {[%clk 0:00:29.4]} 40... Qe5 {[%clk 0:00:47.4]} 41. Qa8+ {[%clk 0:00:27.9]}
41... Kg7 {[%clk 0:00:47.5]} 42. Kg2 {[%clk 0:00:27]} 42... h5 {[%clk 0:00:38]}
43. h4 {[%clk 0:00:26]} 43... Qa1 {[%clk 0:00:33.4]} 44. Qd5 {[%clk 0:00:20.2]}
44... Be5 {[%clk 0:00:31.1]} 45. Bc5 {[%clk 0:00:19]} 45... Bf6 {[%clk
0:00:23.8]} 46. Qd8 {[%clk 0:00:16.9]} 46... Bc4 {[%clk 0:00:20.2]} 47. Qf8+
{[%clk 0:00:14.9]} 47... Kh7 {[%clk 0:00:20.6]} 48. Be3 {[%clk 0:00:13]} 48...
Bg7 {[%clk 0:00:20.5]} 49. Qc5 {[%clk 0:00:12.2]} 49... Bb5 {[%clk 0:00:17.2]}
50. Qxh5+ {[%clk 0:00:11.9]} 50... Kg8 {[%clk 0:00:16.2]} 51. Qd5 {[%clk
0:00:12.3]} 51... Qf6 {[%clk 0:00:16.1]} 52. Bg5 {[%clk 0:00:11]} 52... Qe6
{[%clk 0:00:16.3]} 53. Qxe6 {[%clk 0:00:10.9]} 53... fxe6 {[%clk 0:00:17.2]} 54.
Bxg6 {[%clk 0:00:11.7]} 54... a5 {[%clk 0:00:17.4]} 55. Bd2 {[%clk 0:00:11]}
55... a4 {[%clk 0:00:17.5]} 56. Bb4 {[%clk 0:00:10.9]} 56... Bb2 {[%clk
0:00:16.8]} 57. Bb1 {[%clk 0:00:11.5]} 57... a3 {[%clk 0:00:17.1]} 58. Ba2
{[%clk 0:00:11.7]} 58... Kf7 {[%clk 0:00:17.1]} 59. f4 {[%clk 0:00:12.2]} 59...
Kf6 {[%clk 0:00:16.5]} 60. Kf3 {[%clk 0:00:11.7]} 60... Bd3 {[%clk 0:00:16.8]}
61. g4 {[%clk 0:00:11.5]} 61... Bc2 {[%clk 0:00:16.4]} 62. h5 {[%clk 0:00:11.7]}
62... Bd3 {[%clk 0:00:16.4]} 63. h6 {[%clk 0:00:11.5]} 63... Kg6 {[%clk
0:00:15.7]} 64. g5 {[%clk 0:00:11.7]} 64... Bf5 {[%clk 0:00:15.2]} 65. Ke3
{[%clk 0:00:11.8]} 65... Bc1+ {[%clk 0:00:14.1]} 66. Kf3 {[%clk 0:00:11.7]}
66... Bb2 {[%clk 0:00:14.9]} 67. Bd2 {[%clk 0:00:11.4]} 67... Bd4 {[%clk
0:00:14.4]} 68. Bb4 {[%clk 0:00:11]} 68... Bb2 {[%clk 0:00:14.6]} 1/2-1/2

[Event "*** SCC Grand Prix: Titled Tuesday Blitz"]
[Site "Chess.com"]
[Date "2020.06.09"]
[Round "6"]
[White "Man-Chuk"]
[Black "blitzking1729"]
[Result "1-0"]
[WhiteElo "2758"]
[BlackElo "2556"]
[TimeControl "180+1"]
[EndTime "10:08:16 PDT"]
[Termination "Man-Chuk won on time"]

1. d4 {[%clk 0:03:00.9]} 1... d5 {[%clk 0:02:59.4]} 2. c4 {[%clk 0:03:00.5]}
2... e6 {[%clk 0:02:55.9]} 3. Nc3 {[%clk 0:02:59.6]} 3... c5 {[%clk 0:02:55.8]}
4. cxd5 {[%clk 0:02:57.5]} 4... exd5 {[%clk 0:02:56.7]} 5. Nf3 {[%clk
0:02:57.5]} 5... Nc6 {[%clk 0:02:56.8]} 6. Bg5 {[%clk 0:02:50.7]} 6... Nf6
{[%clk 0:02:41.9]} 7. Bxf6 {[%clk 0:02:24.9]} 7... Qxf6 {[%clk 0:02:32.2]} 8.
Nxd5 {[%clk 0:02:23.3]} 8... Qd8 {[%clk 0:02:31.8]} 9. dxc5 {[%clk 0:02:20.8]}
9... Bxc5 {[%clk 0:02:30.9]} 10. e3 {[%clk 0:02:20.2]} 10... Be6 {[%clk
0:02:27.9]} 11. Nc3 {[%clk 0:02:19.3]} 11... Qb6 {[%clk 0:02:23.7]} 12. Bb5
{[%clk 0:02:14.6]} 12... O-O {[%clk 0:02:16.1]} 13. O-O {[%clk 0:02:14.6]} 13...
Rfd8 {[%clk 0:02:12.6]} 14. Qe2 {[%clk 0:02:14.8]} 14... a6 {[%clk 0:01:50.4]}
15. Bc4 {[%clk 0:01:59.6]} 15... Na5 {[%clk 0:01:18.1]} 16. Bxe6 {[%clk
0:01:57.3]} 16... Qxe6 {[%clk 0:01:17.4]} 17. Rac1 {[%clk 0:01:46.5]} 17... Rac8
{[%clk 0:01:15.1]} 18. Rfd1 {[%clk 0:01:39]} 18... Nc6 {[%clk 0:01:14.1]} 19. g3
{[%clk 0:01:34.7]} 19... h6 {[%clk 0:01:09.6]} 20. Kg2 {[%clk 0:01:27.5]} 20...
Bb4 {[%clk 0:01:04.1]} 21. Rxd8+ {[%clk 0:01:23.4]} 21... Rxd8 {[%clk
0:01:02.9]} 22. a3 {[%clk 0:01:23.5]} 22... Be7 {[%clk 0:00:59.3]} 23. Qc2
{[%clk 0:01:12.9]} 23... Bf6 {[%clk 0:00:45]} 24. Ne2 {[%clk 0:01:10.9]} 24...
Qd5 {[%clk 0:00:41.5]} 25. Nf4 {[%clk 0:01:08.9]} 25... Qb5 {[%clk 0:00:37.7]}
26. b4 {[%clk 0:01:05.5]} 26... a5 {[%clk 0:00:35.7]} 27. Qc5 {[%clk 0:00:55.6]}
27... Qxc5 {[%clk 0:00:33]} 28. Rxc5 {[%clk 0:00:56.3]} 28... axb4 {[%clk
0:00:32.6]} 29. axb4 {[%clk 0:00:57.2]} 29... Nxb4 {[%clk 0:00:32.8]} 30. Rb5
{[%clk 0:00:57.6]} 30... Nc6 {[%clk 0:00:27.2]} 31. Rxb7 {[%clk 0:00:57.1]}
31... g5 {[%clk 0:00:25.8]} 32. Nh5 {[%clk 0:00:56.3]} 32... Be7 {[%clk
0:00:23.3]} 33. g4 {[%clk 0:00:54.2]} 33... Re8 {[%clk 0:00:20.7]} 34. Ng3
{[%clk 0:00:53.4]} 34... Nd8 {[%clk 0:00:19.5]} 35. Rd7 {[%clk 0:00:43]} 35...
Ne6 {[%clk 0:00:18.7]} 36. Nf5 {[%clk 0:00:43.2]} 36... Bf8 {[%clk 0:00:19]} 37.
Ra7 {[%clk 0:00:38.6]} 37... Nc5 {[%clk 0:00:17.8]} 38. h4 {[%clk 0:00:36.5]}
38... gxh4 {[%clk 0:00:16.4]} 39. N3xh4 {[%clk 0:00:37.4]} 39... Ne4 {[%clk
0:00:15.7]} 40. Ra4 {[%clk 0:00:32.5]} 40... Nf6 {[%clk 0:00:14.8]} 41. Nf3
{[%clk 0:00:31.1]} 41... Re4 {[%clk 0:00:13.4]} 42. Rxe4 {[%clk 0:00:30.9]}
42... Nxe4 {[%clk 0:00:13.6]} 43. Ne5 {[%clk 0:00:28.1]} 43... Nf6 {[%clk
0:00:09.2]} 44. f4 {[%clk 0:00:26.6]} 44... Nd5 {[%clk 0:00:08.6]} 45. Kf3
{[%clk 0:00:26]} 45... Ne7 {[%clk 0:00:08.1]} 46. Ke4 {[%clk 0:00:19.6]} 46...
Ng6 {[%clk 0:00:06]} 47. Nf3 {[%clk 0:00:17.2]} 47... Kh7 {[%clk 0:00:04.9]} 48.
Ng3 {[%clk 0:00:17.2]} 48... Be7 {[%clk 0:00:04.6]} 49. Nh5 {[%clk 0:00:17.4]}
49... Nh4 {[%clk 0:00:04.2]} 50. Nxh4 {[%clk 0:00:17.2]} 50... Bxh4 {[%clk
0:00:05.1]} 51. Kf5 {[%clk 0:00:18.1]} 51... Be7 {[%clk 0:00:04.9]} 52. e4
{[%clk 0:00:18.4]} 52... Bd8 {[%clk 0:00:04.4]} 53. e5 {[%clk 0:00:18.8]} 53...
Kg8 {[%clk 0:00:04.4]} 54. Ke4 {[%clk 0:00:18.7]} 54... Kh7 {[%clk 0:00:03.8]}
55. f5 {[%clk 0:00:19.2]} 55... Kg8 {[%clk 0:00:03.7]} 56. Kd5 {[%clk
0:00:19.8]} 56... Bg5 {[%clk 0:00:03.6]} 57. e6 {[%clk 0:00:17]} 57... Kf8
{[%clk 0:00:04.1]} 58. Kd6 {[%clk 0:00:15.3]} 58... fxe6 {[%clk 0:00:03.8]} 59.
Kxe6 {[%clk 0:00:15.4]} 59... Kg8 {[%clk 0:00:03.2]} 60. Ng3 {[%clk 0:00:15.5]}
60... Kf8 {[%clk 0:00:03]} 61. f6 {[%clk 0:00:14.6]} 61... Bf4 {[%clk
0:00:01.8]} 62. Nf5 {[%clk 0:00:14.3]} 62... Bg5 {[%clk 0:00:02.3]} 63. Ne7
{[%clk 0:00:13.6]} 63... Bh4 {[%clk 0:00:01.3]} 64. Ng6+ {[%clk 0:00:13.7]} 1-0

[Event "*** SCC Grand Prix: Titled Tuesday Blitz"]
[Site "Chess.com"]
[Date "2020.06.09"]
[Round "6"]
[White "davidkalashian"]
[Black "Alex_Banzea"]
[Result "0-1"]
[WhiteElo "2592"]
[BlackElo "2455"]
[TimeControl "180+1"]
[EndTime "10:08:17 PDT"]
[Termination "Alex_Banzea won by checkmate"]

1. e4 {[%clk 0:03:00.9]} 1... c6 {[%clk 0:02:55.5]} 2. d4 {[%clk 0:03:00.3]}
2... d5 {[%clk 0:02:56.4]} 3. Nc3 {[%clk 0:03:00.5]} 3... dxe4 {[%clk
0:02:56.7]} 4. Nxe4 {[%clk 0:03:01.4]} 4... Nf6 {[%clk 0:02:57.6]} 5. Nxf6+
{[%clk 0:03:01.5]} 5... exf6 {[%clk 0:02:58.5]} 6. c3 {[%clk 0:03:01.1]} 6...
Bf5 {[%clk 0:02:58.4]} 7. Bd3 {[%clk 0:02:52.4]} 7... Bxd3 {[%clk 0:02:58]} 8.
Qxd3 {[%clk 0:02:53.3]} 8... Bd6 {[%clk 0:02:58.5]} 9. Ne2 {[%clk 0:02:50.2]}
9... O-O {[%clk 0:02:57]} 10. O-O {[%clk 0:02:44.6]} 10... Qc7 {[%clk
0:02:57.2]} 11. g3 {[%clk 0:02:44.5]} 11... Nd7 {[%clk 0:02:56.2]} 12. Bf4
{[%clk 0:02:44.2]} 12... a5 {[%clk 0:02:55.3]} 13. Rfe1 {[%clk 0:02:42.8]} 13...
a4 {[%clk 0:02:54.5]} 14. Bxd6 {[%clk 0:02:40.3]} 14... Qxd6 {[%clk 0:02:55.4]}
15. Nf4 {[%clk 0:02:40.6]} 15... b5 {[%clk 0:02:50.4]} 16. h4 {[%clk 0:02:37.1]}
16... Nb6 {[%clk 0:02:48.6]} 17. h5 {[%clk 0:02:33]} 17... h6 {[%clk 0:02:45.4]}
18. Re2 {[%clk 0:02:25.5]} 18... Nd5 {[%clk 0:02:40.7]} 19. Nxd5 {[%clk
0:02:15]} 19... Qxd5 {[%clk 0:02:41.6]} 20. Qe4 {[%clk 0:02:08.9]} 20... Qxh5
{[%clk 0:02:35.8]} 21. Rae1 {[%clk 0:02:09.3]} 21... Rac8 {[%clk 0:02:24.8]} 22.
a3 {[%clk 0:02:08.3]} 22... Rfd8 {[%clk 0:02:23.6]} 23. Qe7 {[%clk 0:02:06.2]}
23... Qd5 {[%clk 0:02:19.7]} 24. Qb4 {[%clk 0:01:58.3]} 24... h5 {[%clk
0:02:12.6]} 25. Re4 {[%clk 0:01:53.9]} 25... g5 {[%clk 0:02:11.2]} 26. Qe7
{[%clk 0:01:50.6]} 26... Kg7 {[%clk 0:02:10.9]} 27. Re6 {[%clk 0:01:46.2]} 27...
Qf5 {[%clk 0:01:59.1]} 28. Rxc6 {[%clk 0:01:21.7]} 28... Rd7 {[%clk 0:01:11.5]}
29. Qc5 {[%clk 0:00:56.8]} 29... Qxc5 {[%clk 0:01:10.1]} 30. Rxc5 {[%clk
0:00:56.8]} 30... Rxc5 {[%clk 0:01:10.5]} 31. dxc5 {[%clk 0:00:57.7]} 31... Rc7
{[%clk 0:01:03.8]} 32. Re4 {[%clk 0:00:51.6]} 32... Rxc5 {[%clk 0:01:03.2]} 33.
Rb4 {[%clk 0:00:52.2]} 33... g4 {[%clk 0:00:56]} 34. Kg2 {[%clk 0:00:51.7]}
34... Kg6 {[%clk 0:00:54.6]} 35. Kf1 {[%clk 0:00:49.8]} 35... Kg5 {[%clk
0:00:53.7]} 36. c4 {[%clk 0:00:42.7]} 36... bxc4 {[%clk 0:00:50.4]} 37. Rxa4
{[%clk 0:00:42.1]} 37... f5 {[%clk 0:00:38.4]} 38. f4+ {[%clk 0:00:27.2]} 38...
Kg6 {[%clk 0:00:24.3]} 39. Rb4 {[%clk 0:00:18.3]} 39... c3 {[%clk 0:00:23.7]}
40. bxc3 {[%clk 0:00:18.8]} 40... Rxc3 {[%clk 0:00:24.6]} 41. Rb6+ {[%clk
0:00:18.9]} 41... f6 {[%clk 0:00:22.9]} 42. a4 {[%clk 0:00:16.7]} 42... Rxg3
{[%clk 0:00:21.8]} 43. a5 {[%clk 0:00:17.6]} 43... Rf3+ {[%clk 0:00:21.2]} 44.
Kg2 {[%clk 0:00:16.4]} 44... Rxf4 {[%clk 0:00:21.8]} 45. a6 {[%clk 0:00:15.6]}
45... Ra4 {[%clk 0:00:22.1]} 46. Kg3 {[%clk 0:00:15.6]} 46... Kg5 {[%clk
0:00:19.9]} 47. Rb8 {[%clk 0:00:13.2]} 47... h4+ {[%clk 0:00:19.5]} 48. Kg2
{[%clk 0:00:13.6]} 48... Ra2+ {[%clk 0:00:19.5]} 49. Kg1 {[%clk 0:00:13.3]}
49... Rxa6 {[%clk 0:00:20]} 50. Rg8+ {[%clk 0:00:13.1]} 50... Kf4 {[%clk
0:00:20.4]} 51. Rb8 {[%clk 0:00:13.7]} 51... Ra3 {[%clk 0:00:17.5]} 52. Rb4+
{[%clk 0:00:13.8]} 52... Kg3 {[%clk 0:00:17.1]} 53. Rb1 {[%clk 0:00:14.3]} 53...
h3 {[%clk 0:00:17]} 54. Kh1 {[%clk 0:00:13.4]} 54... f4 {[%clk 0:00:17.3]} 55.
Rg1+ {[%clk 0:00:13.1]} 55... Kh4 {[%clk 0:00:17.5]} 56. Rf1 {[%clk 0:00:13.6]}
56... f3 {[%clk 0:00:17]} 57. Rg1 {[%clk 0:00:13.2]} 57... g3 {[%clk 0:00:15.4]}
58. Rb1 {[%clk 0:00:13.6]} 58... f5 {[%clk 0:00:10.6]} 59. Rb4+ {[%clk
0:00:13.2]} 59... Kg5 {[%clk 0:00:11]} 60. Rb1 {[%clk 0:00:13.6]} 60... f4
{[%clk 0:00:10.1]} 61. Rb5+ {[%clk 0:00:13.6]} 61... Kg4 {[%clk 0:00:09.7]} 62.
Rb1 {[%clk 0:00:14.1]} 62... Ra2 {[%clk 0:00:09.5]} 63. Rd1 {[%clk 0:00:12.6]}
63... Rh2+ {[%clk 0:00:09.2]} 64. Kg1 {[%clk 0:00:11.9]} 64... f2+ {[%clk
0:00:09.7]} 65. Kf1 {[%clk 0:00:12.8]} 65... Rh1+ {[%clk 0:00:09.4]} 66. Ke2
{[%clk 0:00:13.7]} 66... f3+ {[%clk 0:00:08]} 67. Ke3 {[%clk 0:00:12.7]} 67...
Rxd1 {[%clk 0:00:08]} 68. Ke4 {[%clk 0:00:13.6]} 68... Re1+ {[%clk 0:00:07.8]}
69. Kd5 {[%clk 0:00:13.6]} 69... f1=Q {[%clk 0:00:08.3]} 70. Kd6 {[%clk
0:00:14.4]} 70... Qe2 {[%clk 0:00:08.7]} 71. Kd7 {[%clk 0:00:14.1]} 71... Rd1+
{[%clk 0:00:09.1]} 72. Kc8 {[%clk 0:00:14.2]} 72... Qc2+ {[%clk 0:00:10]} 73.
Kb8 {[%clk 0:00:15]} 73... Rb1+ {[%clk 0:00:10.4]} 74. Ka8 {[%clk 0:00:15.9]}
74... Qa2# {[%clk 0:00:10.8]} 0-1

[Event "*** SCC Grand Prix: Titled Tuesday Blitz"]
[Site "Chess.com"]
[Date "2020.06.09"]
[Round "6"]
[White "SergeyKarjakin"]
[Black "Caracternin123"]
[Result "1-0"]
[WhiteElo "2959"]
[BlackElo "2557"]
[TimeControl "180+1"]
[EndTime "10:08:18 PDT"]
[Termination "SergeyKarjakin won by resignation"]

1. d4 {[%clk 0:03:00.9]} 1... Nf6 {[%clk 0:03:00.3]} 2. Nf3 {[%clk 0:03:01.8]}
2... d5 {[%clk 0:02:59.7]} 3. Bf4 {[%clk 0:03:02.3]} 3... e6 {[%clk 0:02:59.8]}
4. e3 {[%clk 0:03:02.6]} 4... Bd6 {[%clk 0:03:00.2]} 5. Nbd2 {[%clk 0:03:01.5]}
5... O-O {[%clk 0:02:59.9]} 6. Bd3 {[%clk 0:03:00.8]} 6... c5 {[%clk 0:02:59.8]}
7. c3 {[%clk 0:02:59.2]} 7... Bxf4 {[%clk 0:02:59.5]} 8. exf4 {[%clk 0:03:00.1]}
8... cxd4 {[%clk 0:02:56.5]} 9. Nxd4 {[%clk 0:02:55.1]} 9... Nc6 {[%clk
0:02:56]} 10. N2f3 {[%clk 0:02:54]} 10... Qc7 {[%clk 0:02:36.9]} 11. g3 {[%clk
0:02:53.9]} 11... Nxd4 {[%clk 0:02:27.2]} 12. Nxd4 {[%clk 0:02:54.8]} 12... e5
{[%clk 0:02:27.7]} 13. fxe5 {[%clk 0:02:54.6]} 13... Qxe5+ {[%clk 0:02:28.1]}
14. Qe2 {[%clk 0:02:54.7]} 14... Qc7 {[%clk 0:02:22.1]} 15. O-O {[%clk
0:02:44.8]} 15... Bg4 {[%clk 0:02:21.2]} 16. f3 {[%clk 0:02:37]} 16... Rfe8
{[%clk 0:02:18.4]} 17. Qf2 {[%clk 0:02:36.4]} 17... Bd7 {[%clk 0:02:16.6]} 18.
Rfe1 {[%clk 0:02:35.9]} 18... Qd6 {[%clk 0:02:14.4]} 19. a3 {[%clk 0:02:34.9]}
19... g6 {[%clk 0:02:09.4]} 20. Qd2 {[%clk 0:02:33.4]} 20... Kg7 {[%clk
0:02:09.3]} 21. Kf2 {[%clk 0:02:33.4]} 21... a5 {[%clk 0:01:56.2]} 22. Rxe8
{[%clk 0:02:29.8]} 22... Rxe8 {[%clk 0:01:55.7]} 23. Re1 {[%clk 0:02:30.7]}
23... a4 {[%clk 0:01:55]} 24. Rxe8 {[%clk 0:02:29]} 24... Bxe8 {[%clk
0:01:55.1]} 25. Qe3 {[%clk 0:02:21.6]} 25... Bd7 {[%clk 0:01:52.5]} 26. Nc2
{[%clk 0:02:20.8]} 26... Bc6 {[%clk 0:01:43.3]} 27. Qd4 {[%clk 0:02:19.5]} 27...
Kg8 {[%clk 0:01:43.4]} 28. Ne3 {[%clk 0:02:18.2]} 28... Nd7 {[%clk 0:01:41.1]}
29. Bc2 {[%clk 0:02:09.8]} 29... Qc5 {[%clk 0:01:38.6]} 30. Qxc5 {[%clk
0:01:57.9]} 30... Nxc5 {[%clk 0:01:39.5]} 31. Ng4 {[%clk 0:01:58.6]} 31... Nd7
{[%clk 0:01:35]} 32. Ke3 {[%clk 0:01:57.9]} 32... Kf8 {[%clk 0:01:25.3]} 33. Kd4
{[%clk 0:01:57]} 33... Ke7 {[%clk 0:01:25.9]} 34. f4 {[%clk 0:01:49.8]} 34...
Kd6 {[%clk 0:01:24.2]} 35. Ne5 {[%clk 0:01:36]} 35... f6 {[%clk 0:01:10.2]} 36.
Nf3 {[%clk 0:01:18.7]} 36... Nc5 {[%clk 0:01:04.4]} 37. h4 {[%clk 0:01:17.9]}
37... Ne6+ {[%clk 0:01:04.2]} 38. Ke3 {[%clk 0:01:18.1]} 38... Be8 {[%clk
0:00:56.4]} 39. f5 {[%clk 0:01:07.9]} 39... Nc5 {[%clk 0:00:56.1]} 40. Nd4
{[%clk 0:01:03.8]} 40... Ke5 {[%clk 0:00:54.6]} 41. Nf3+ {[%clk 0:01:03.5]}
41... Kd6 {[%clk 0:00:55.2]} 42. Kf4 {[%clk 0:01:04.4]} 42... Ke7 {[%clk
0:00:42.4]} 43. Nd4 {[%clk 0:01:02.4]} 43... Kd6 {[%clk 0:00:42.9]} 44. g4
{[%clk 0:01:01.3]} 44... Ke7 {[%clk 0:00:41.5]} 45. g5 {[%clk 0:00:46.9]} 45...
b6 {[%clk 0:00:37.8]} 46. Bb1 {[%clk 0:00:33.8]} 46... Nb7 {[%clk 0:00:23.6]}
47. Ba2 {[%clk 0:00:28.9]} 47... Bf7 {[%clk 0:00:22]} 48. fxg6 {[%clk 0:00:20]}
48... hxg6 {[%clk 0:00:21.4]} 49. Bb1 {[%clk 0:00:20.3]} 49... Nc5 {[%clk
0:00:18.7]} 50. Bc2 {[%clk 0:00:12.6]} 50... Ne6+ {[%clk 0:00:15.8]} 51. Nxe6
{[%clk 0:00:11.5]} 51... Kxe6 {[%clk 0:00:16.5]} 52. Bxa4 {[%clk 0:00:11.7]}
52... Ke7 {[%clk 0:00:14.7]} 53. Bc2 {[%clk 0:00:11.6]} 53... Ke6 {[%clk
0:00:14.8]} 54. b4 {[%clk 0:00:11.5]} 54... Ke7 {[%clk 0:00:15]} 55. a4 {[%clk
0:00:11.7]} 55... Be8 {[%clk 0:00:15.6]} 56. a5 {[%clk 0:00:11.6]} 56... bxa5
{[%clk 0:00:16.5]} 57. bxa5 {[%clk 0:00:12.5]} 57... f5 {[%clk 0:00:15.9]} 58.
a6 {[%clk 0:00:11.4]} 58... Kd6 {[%clk 0:00:16.3]} 59. a7 {[%clk 0:00:11.5]}
59... Bc6 {[%clk 0:00:16.7]} 60. Bxf5 {[%clk 0:00:07.3]} 60... gxf5 {[%clk
0:00:16.7]} 61. Kxf5 {[%clk 0:00:08.2]} 61... Kc7 {[%clk 0:00:11.4]} 62. g6
{[%clk 0:00:08.1]} 62... d4 {[%clk 0:00:04.9]} 63. cxd4 {[%clk 0:00:07.5]} 63...
Kb7 {[%clk 0:00:05.4]} 64. Ke5 {[%clk 0:00:06.9]} 64... Be8 {[%clk 0:00:04.7]}
65. Kf6 {[%clk 0:00:06.5]} 65... Bc6 {[%clk 0:00:05.1]} 66. h5 {[%clk
0:00:06.3]} 66... Kxa7 {[%clk 0:00:05]} 67. h6 {[%clk 0:00:06.5]} 1-0